[Event "January 2 Early 2024"]
[Site "https://www.chess.com"]
[Date "2024.01.02"]
[Round "8"]
[White "Injac, Teodora"]
[Black "Lehtosaari, Mauri"]
[Result "1-0"]
[Board "91"]
[TimeControl "180+1"]
[WhiteFideId "932400"]
[BlackFideId "501999"]
[WhiteElo "2653"]
[BlackElo "2511"]
[WhiteTeam "SRB"]
[BlackTeam "FIN"]
[WhiteClock "0:00:05"]
[BlackClock "0:00:00"]

1. d4 {[%clk 0:03:00]}  d5 {[%clk 0:02:50]} 2. Nf3 {[%clk 0:03:00]}  Nf6 {[%clk 0:02:50]} 3. c4 {[%clk 0:03:01]}  c6 {[%clk 0:02:48]} 4. g3 {[%clk 0:03:01]}  Bf5 {[%clk 0:02:45]} 5. Bg2 {[%clk 0:03:01]}  e6 {[%clk 0:02:45]} 6. O-O {[%clk 0:03:01]}  Bd6 {[%clk 0:02:34]} 7. Nc3 {[%clk 0:02:57]}  O-O {[%clk 0:02:31]} 8. b3 {[%clk 0:02:42]}  Nbd7 {[%clk 0:02:14]} 9. Bb2 {[%clk 0:02:26]}  h6 {[%clk 0:02:12]} 10. Nd2 {[%clk 0:02:24]}  Bb4 {[%clk 0:02:04]} 11. a3 {[%clk 0:02:20]}  Be7 {[%clk 0:01:45]} 12. e4 {[%clk 0:02:12]}  dxe4 {[%clk 0:01:45]} 13. Ndxe4 {[%clk 0:02:12]}  Nxe4 {[%clk 0:01:45]} 14. Nxe4 {[%clk 0:02:12]}  Nf6 {[%clk 0:01:45]} 15. Nc3 {[%clk 0:01:55]}  Qc7 {[%clk 0:01:36]} 16. Qe2 {[%clk 0:01:52]}  Rfe8 {[%clk 0:01:34]} 17. Rad1 {[%clk 0:01:42]}  Rad8 {[%clk 0:01:32]} 18. Rfe1 {[%clk 0:01:42]}  Bg4 {[%clk 0:01:23]} 19. Bf3 {[%clk 0:01:38]}  Bxf3 {[%clk 0:01:15]} 20. Qxf3 {[%clk 0:01:39]}  a6 {[%clk 0:00:52]} 21. Rd3 {[%clk 0:01:27]}  Qa5 {[%clk 0:00:45]} 22. Red1 {[%clk 0:01:24]}  Qh5 {[%clk 0:00:32]} 23. Kg2 {[%clk 0:01:18]}  Qxf3+ {[%clk 0:00:27]} 24. Kxf3 {[%clk 0:01:18]}  Rd7 {[%clk 0:00:26]} 25. g4 {[%clk 0:01:09]}  Bd6 {[%clk 0:00:20]} 26. h4 {[%clk 0:01:09]}  Bc7 {[%clk 0:00:20]} 27. g5 {[%clk 0:01:08]}  hxg5 {[%clk 0:00:18]} 28. hxg5 {[%clk 0:01:09]}  Nh5 {[%clk 0:00:19]} 29. Bc1 {[%clk 0:00:59]}  g6 {[%clk 0:00:17]} 30. Be3 {[%clk 0:01:00]}  Red8 {[%clk 0:00:17]} 31. Ne4 {[%clk 0:00:59]}  Kg7 {[%clk 0:00:16]} 32. Nc5 {[%clk 0:00:58]}  Bd6 {[%clk 0:00:15]} 33. Nxd7 {[%clk 0:00:58]}  Rxd7 {[%clk 0:00:16]} 34. a4 {[%clk 0:00:53]}  Bb4 {[%clk 0:00:14]} 35. d5 {[%clk 0:00:50]}  cxd5 {[%clk 0:00:09]} 36. cxd5 {[%clk 0:00:50]}  e5 {[%clk 0:00:10]} 37. d6 {[%clk 0:00:48]}  f6 {[%clk 0:00:11]} 38. gxf6+ {[%clk 0:00:44]}  Kxf6 {[%clk 0:00:10]} 39. Bb6 {[%clk 0:00:30]}  Ke6 {[%clk 0:00:09]} 40. Bc7 {[%clk 0:00:30]}  Nf6 {[%clk 0:00:09]} 41. Ke2 {[%clk 0:00:25]}  Ne4 {[%clk 0:00:09]} 42. Rg1 {[%clk 0:00:20]}  Kf5 {[%clk 0:00:07]} 43. Rf3+ {[%clk 0:00:19]}  Ke6 {[%clk 0:00:07]} 44. Rxg6+ {[%clk 0:00:20]}  Kd5 {[%clk 0:00:08]} 45. Rd3+ {[%clk 0:00:20]}  Kc5 {[%clk 0:00:08]} 46. f3 {[%clk 0:00:17]}  Nc3+ {[%clk 0:00:07]} 47. Kf2 {[%clk 0:00:14]}  Nd5 {[%clk 0:00:07]} 48. Rd1 {[%clk 0:00:10]}  Bc3 {[%clk 0:00:06]} 49. Rc1 {[%clk 0:00:09]}  Kb4 {[%clk 0:00:06]} 50. Re6 {[%clk 0:00:08]}  Bd4+ {[%clk 0:00:07]} 51. Kf1 {[%clk 0:00:06]}  Nf4 {[%clk 0:00:00]} 52. Re7 {[%clk 0:00:05]} 1-0

[Event "January 2 Early 2024"]
[Site "https://www.chess.com"]
[Date "2024.01.02"]
[Round "8"]
[White "Gontcharov, Vladislav"]
[Black "Korpics, Zsolt"]
[Result "1-0"]
[Board "93"]
[TimeControl "180+1"]
[WhiteFideId "4123492"]
[BlackFideId "705241"]
[WhiteElo "2626"]
[BlackElo "2503"]
[WhiteTeam "RUS"]
[BlackTeam "HUN"]
[WhiteClock "0:00:02"]
[BlackClock "0:00:00"]

1. e4 {[%clk 0:03:00]}  c5 {[%clk 0:03:00]} 2. Nf3 {[%clk 0:03:00]}  e6 {[%clk 0:03:00]} 3. d4 {[%clk 0:03:00]}  cxd4 {[%clk 0:03:00]} 4. Nxd4 {[%clk 0:03:00]}  Nc6 {[%clk 0:03:00]} 5. Nb5 {[%clk 0:02:51]}  d6 {[%clk 0:03:00]} 6. c4 {[%clk 0:02:49]}  Nf6 {[%clk 0:02:59]} 7. N5c3 {[%clk 0:02:47]}  Be7 {[%clk 0:02:58]} 8. Be2 {[%clk 0:02:46]}  O-O {[%clk 0:02:58]} 9. O-O {[%clk 0:02:45]}  a6 {[%clk 0:02:56]} 10. Be3 {[%clk 0:02:43]}  Qc7 {[%clk 0:02:53]} 11. Na3 {[%clk 0:02:24]}  b6 {[%clk 0:02:48]} 12. Rc1 {[%clk 0:02:23]}  Nb8 {[%clk 0:02:46]} 13. f4 {[%clk 0:02:14]}  Nbd7 {[%clk 0:02:40]} 14. Bf3 {[%clk 0:02:13]}  Bb7 {[%clk 0:02:40]} 15. b4 {[%clk 0:02:09]}  Rac8 {[%clk 0:02:38]} 16. g4 {[%clk 0:01:44]}  d5 {[%clk 0:02:13]} 17. cxd5 {[%clk 0:01:27]}  Bxb4 {[%clk 0:02:09]} 18. Na4 {[%clk 0:00:59]}  Qb8 {[%clk 0:01:56]} 19. Nc2 {[%clk 0:00:43]}  Bc5 {[%clk 0:01:01]} 20. Nd4 {[%clk 0:00:38]}  exd5 {[%clk 0:00:56]} 21. e5 {[%clk 0:00:30]}  Ne4 {[%clk 0:00:55]} 22. Bxe4 {[%clk 0:00:19]}  dxe4 {[%clk 0:00:54]} 23. Nxc5 {[%clk 0:00:18]}  Nxc5 {[%clk 0:00:53]} 24. Nf5 {[%clk 0:00:19]}  Rcd8 {[%clk 0:00:46]} 25. Qe2 {[%clk 0:00:18]}  Nd3 {[%clk 0:00:44]} 26. Rc4 {[%clk 0:00:17]}  b5 {[%clk 0:00:44]} 27. Rd4 {[%clk 0:00:17]}  Rxd4 {[%clk 0:00:42]} 28. Bxd4 {[%clk 0:00:17]}  Qc7 {[%clk 0:00:30]} 29. Qe3 {[%clk 0:00:14]}  Bd5 {[%clk 0:00:22]} 30. a3 {[%clk 0:00:12]}  Be6 {[%clk 0:00:18]} 31. Nd6 {[%clk 0:00:11]}  Bxg4 {[%clk 0:00:16]} 32. Qxe4 {[%clk 0:00:11]}  Nc5 {[%clk 0:00:16]} 33. Qg2 {[%clk 0:00:10]}  Bh5 {[%clk 0:00:13]} 34. f5 {[%clk 0:00:11]}  Nb3 {[%clk 0:00:12]} 35. Bb2 {[%clk 0:00:09]}  Qc5+ {[%clk 0:00:11]} 36. Kh1 {[%clk 0:00:09]}  Nd4 {[%clk 0:00:03]} 37. Ne4 {[%clk 0:00:07]}  Qb6 {[%clk 0:00:02]} 38. Ng3 {[%clk 0:00:07]}  Bg4 {[%clk 0:00:02]} 39. Rf4 {[%clk 0:00:05]}  Bf3 {[%clk 0:00:02]} 40. Rxf3 {[%clk 0:00:05]}  Nxf3 {[%clk 0:00:03]} 41. Qxf3 {[%clk 0:00:06]}  Rc8 {[%clk 0:00:02]} 42. f6 {[%clk 0:00:04]}  g6 {[%clk 0:00:02]} 43. Ne4 {[%clk 0:00:04]}  Qc6 {[%clk 0:00:02]} 44. Bc3 {[%clk 0:00:03]}  Qd5 {[%clk 0:00:02]} 45. Bb4 {[%clk 0:00:01]}  Rc4 {[%clk 0:00:03]} 46. Ng5 {[%clk 0:00:01]}  Qxf3+ {[%clk 0:00:02]} 47. Nxf3 {[%clk 0:00:02]}  Rf4 {[%clk 0:00:02]} 48. Kg2 {[%clk 0:00:01]}  Re4 {[%clk 0:00:02]} 49. Kf2 {[%clk 0:00:02]}  h5 {[%clk 0:00:03]} 50. Be7 {[%clk 0:00:01]}  h4 {[%clk 0:00:03]} 51. Bd6 {[%clk 0:00:02]}  Kh7 {[%clk 0:00:01]} 52. Ng5+ {[%clk 0:00:01]}  Kh6 {[%clk 0:00:00]} 53. Nxe4 {[%clk 0:00:02]} 1-0

[Event "January 2 Early 2024"]
[Site "https://www.chess.com"]
[Date "2024.01.02"]
[Round "8"]
[White "Ladan, Nicholas"]
[Black "Mirzoev, Azer"]
[Result "0-1"]
[Board "94"]
[TimeControl "180+1"]
[WhiteFideId "30918855"]
[BlackFideId "13400304"]
[WhiteElo "2502"]
[BlackElo "2616"]
[WhiteTeam "USA"]
[BlackTeam "AZE"]
[WhiteClock "0:00:02"]
[BlackClock "0:01:39"]

1. d4 {[%clk 0:03:00]}  Nf6 {[%clk 0:02:59]} 2. Nf3 {[%clk 0:03:01]}  e6 {[%clk 0:02:59]} 3. g3 {[%clk 0:03:00]}  b5 {[%clk 0:02:59]} 4. Bg2 {[%clk 0:03:00]}  Bb7 {[%clk 0:03:00]} 5. O-O {[%clk 0:03:01]}  c5 {[%clk 0:02:59]} 6. c4 {[%clk 0:02:59]}  bxc4 {[%clk 0:02:58]} 7. Qa4 {[%clk 0:02:51]}  cxd4 {[%clk 0:02:57]} 8. Rd1 {[%clk 0:02:37]}  d3 {[%clk 0:02:55]} 9. exd3 {[%clk 0:02:27]}  cxd3 {[%clk 0:02:55]} 10. Rxd3 {[%clk 0:02:27]}  Be7 {[%clk 0:02:54]} 11. Bf4 {[%clk 0:02:16]}  Na6 {[%clk 0:02:52]} 12. Qb5 {[%clk 0:02:08]}  Qb6 {[%clk 0:02:49]} 13. Qxb6 {[%clk 0:02:00]}  axb6 {[%clk 0:02:50]} 14. Rb3 {[%clk 0:01:55]}  Nd5 {[%clk 0:02:47]} 15. Ne5 {[%clk 0:01:44]}  Nc5 {[%clk 0:02:45]} 16. Bxd5 {[%clk 0:01:39]}  Bxd5 {[%clk 0:02:41]} 17. Rxb6 {[%clk 0:01:39]}  f6 {[%clk 0:02:37]} 18. Nf3 {[%clk 0:01:34]}  Bxf3 {[%clk 0:02:35]} 19. Nc3 {[%clk 0:01:31]}  O-O {[%clk 0:02:30]} 20. a4 {[%clk 0:01:24]}  Rfc8 {[%clk 0:02:25]} 21. a5 {[%clk 0:01:24]}  Nd3 {[%clk 0:02:21]} 22. Be3 {[%clk 0:01:20]}  Nxb2 {[%clk 0:02:19]} 23. Rxb2 {[%clk 0:01:05]}  Rxc3 {[%clk 0:02:18]} 24. a6 {[%clk 0:01:06]}  Bc5 {[%clk 0:02:00]} 25. a7 {[%clk 0:00:16]}  Bxe3 {[%clk 0:01:57]} 26. fxe3 {[%clk 0:00:11]}  Kf7 {[%clk 0:01:57]} 27. Kf2 {[%clk 0:00:11]}  Bc6 {[%clk 0:01:54]} 28. Rb8 {[%clk 0:00:10]}  Ke7 {[%clk 0:01:53]} 29. Ra6 {[%clk 0:00:07]}  Rc2+ {[%clk 0:01:49]} 30. Ke1 {[%clk 0:00:07]}  Bf3 {[%clk 0:01:43]} 31. Rxa8 {[%clk 0:00:02]}  Bxa8 {[%clk 0:01:42]} 32. Rb6 {[%clk 0:00:03]}  Rc7 {[%clk 0:01:39]} 33. Rb7 {[%clk 0:00:02]} 0-1

[Event "January 2 Early 2024"]
[Site "https://www.chess.com"]
[Date "2024.01.02"]
[Round "8"]
[White "Yagupov, Igor"]
[Black "Spitzl, Vinzent"]
[Result "1-0"]
[Board "95"]
[TimeControl "180+1"]
[WhiteFideId "4113632"]
[BlackFideId "12901253"]
[WhiteElo "2608"]
[BlackElo "2495"]
[WhiteTeam "RUS"]
[BlackTeam "GER"]
[WhiteClock "0:00:20"]
[BlackClock "0:00:00"]

1. e4 {[%clk 0:03:00]}  c5 {[%clk 0:02:57]} 2. Nf3 {[%clk 0:03:00]}  d6 {[%clk 0:02:57]} 3. d4 {[%clk 0:02:58]}  cxd4 {[%clk 0:02:58]} 4. Nxd4 {[%clk 0:02:59]}  Nf6 {[%clk 0:02:58]} 5. Nc3 {[%clk 0:02:59]}  a6 {[%clk 0:02:59]} 6. Be3 {[%clk 0:02:58]}  e5 {[%clk 0:02:59]} 7. Nb3 {[%clk 0:02:57]}  Be7 {[%clk 0:03:00]} 8. f3 {[%clk 0:02:56]}  Be6 {[%clk 0:02:59]} 9. Qd2 {[%clk 0:02:56]}  h5 {[%clk 0:02:59]} 10. Nd5 {[%clk 0:02:53]}  Nxd5 {[%clk 0:02:58]} 11. exd5 {[%clk 0:02:54]}  Bf5 {[%clk 0:02:58]} 12. c4 {[%clk 0:02:47]}  Nd7 {[%clk 0:02:45]} 13. Na5 {[%clk 0:02:43]}  Qc7 {[%clk 0:02:39]} 14. Be2 {[%clk 0:02:42]}  O-O {[%clk 0:02:22]} 15. O-O {[%clk 0:02:41]}  Bg6 {[%clk 0:02:17]} 16. b4 {[%clk 0:02:39]}  f5 {[%clk 0:02:04]} 17. Rac1 {[%clk 0:02:36]}  f4 {[%clk 0:02:03]} 18. Bf2 {[%clk 0:02:35]}  e4 {[%clk 0:01:53]} 19. fxe4 {[%clk 0:02:33]}  Ne5 {[%clk 0:01:53]} 20. c5 {[%clk 0:02:24]}  Bg5 {[%clk 0:01:48]} 21. Qd1 {[%clk 0:01:57]}  Bxe4 {[%clk 0:01:18]} 22. Rc3 {[%clk 0:01:46]}  Rae8 {[%clk 0:01:06]} 23. Bxh5 {[%clk 0:01:40]}  g6 {[%clk 0:01:02]} 24. Be2 {[%clk 0:01:34]}  Qf7 {[%clk 0:00:46]} 25. Bd4 {[%clk 0:01:33]}  Qxd5 {[%clk 0:00:33]} 26. Bxe5 {[%clk 0:01:19]}  Qxe5 {[%clk 0:00:33]} 27. Qb3+ {[%clk 0:01:08]}  Kh7 {[%clk 0:00:33]} 28. cxd6 {[%clk 0:00:55]}  Qxd6 {[%clk 0:00:27]} 29. Rh3+ {[%clk 0:00:52]}  Kg7 {[%clk 0:00:26]} 30. Qc3+ {[%clk 0:00:44]}  Bf6 {[%clk 0:00:23]} 31. Qe1 {[%clk 0:00:40]}  Bd4+ {[%clk 0:00:13]} 32. Kh1 {[%clk 0:00:38]}  Bf5 {[%clk 0:00:13]} 33. Rb3 {[%clk 0:00:33]}  Bg4 {[%clk 0:00:12]} 34. Bxg4 {[%clk 0:00:30]}  Rxe1 {[%clk 0:00:12]} 35. Rxe1 {[%clk 0:00:31]}  b6 {[%clk 0:00:07]} 36. Nc4 {[%clk 0:00:29]}  Qd5 {[%clk 0:00:07]} 37. Nd2 {[%clk 0:00:27]}  Rf7 {[%clk 0:00:06]} 38. Nf3 {[%clk 0:00:26]}  Bf6 {[%clk 0:00:04]} 39. Be6 {[%clk 0:00:21]}  Qc4 {[%clk 0:00:00]} 40. Bxc4 {[%clk 0:00:20]} 1-0

[Event "January 2 Early 2024"]
[Site "https://www.chess.com"]
[Date "2024.01.02"]
[Round "8"]
[White "Assylov, Miras"]
[Black "Namitbir Singh Walia"]
[Result "1-0"]
[Board "96"]
[TimeControl "180+1"]
[WhiteFideId "13728873"]
[BlackFideId "35071068"]
[WhiteElo "2603"]
[BlackElo "2471"]
[WhiteTeam "KAZ"]
[BlackTeam "IND"]
[WhiteClock "0:00:16"]
[BlackClock "0:00:00"]

1. b3 {[%clk 0:02:47]}  Nf6 {[%clk 0:02:55]} 2. Bb2 {[%clk 0:02:47]}  g6 {[%clk 0:02:56]} 3. Bxf6 {[%clk 0:02:46]}  exf6 {[%clk 0:02:54]} 4. c4 {[%clk 0:02:47]}  f5 {[%clk 0:02:53]} 5. Nc3 {[%clk 0:02:40]}  Bg7 {[%clk 0:02:52]} 6. Rc1 {[%clk 0:02:40]}  O-O {[%clk 0:02:49]} 7. e3 {[%clk 0:02:40]}  b6 {[%clk 0:02:39]} 8. Be2 {[%clk 0:02:32]}  Bb7 {[%clk 0:02:38]} 9. Bf3 {[%clk 0:02:33]}  Nc6 {[%clk 0:02:38]} 10. d4 {[%clk 0:02:30]}  f4 {[%clk 0:02:31]} 11. exf4 {[%clk 0:02:26]}  Bxd4 {[%clk 0:02:28]} 12. Nge2 {[%clk 0:02:24]}  Bg7 {[%clk 0:02:17]} 13. O-O {[%clk 0:02:23]}  Re8 {[%clk 0:02:07]} 14. Qd2 {[%clk 0:02:15]}  d6 {[%clk 0:02:03]} 15. Rfe1 {[%clk 0:02:08]}  Qd7 {[%clk 0:01:58]} 16. Nb5 {[%clk 0:02:07]}  Rab8 {[%clk 0:01:50]} 17. Bd5 {[%clk 0:01:56]}  a6 {[%clk 0:01:42]} 18. Nbd4 {[%clk 0:01:46]}  Nxd4 {[%clk 0:01:27]} 19. Nxd4 {[%clk 0:01:47]}  c6 {[%clk 0:00:56]} 20. Bf3 {[%clk 0:01:40]}  Rxe1+ {[%clk 0:00:56]} 21. Rxe1 {[%clk 0:01:40]}  Re8 {[%clk 0:00:57]} 22. Re3 {[%clk 0:01:32]}  h5 {[%clk 0:00:46]} 23. h4 {[%clk 0:01:28]}  Bf6 {[%clk 0:00:42]} 24. g3 {[%clk 0:01:28]}  Kg7 {[%clk 0:00:37]} 25. Nc2 {[%clk 0:01:08]}  Re7 {[%clk 0:00:24]} 26. Rxe7 {[%clk 0:00:52]}  Qxe7 {[%clk 0:00:23]} 27. Ne3 {[%clk 0:00:52]}  Qe6 {[%clk 0:00:19]} 28. f5 {[%clk 0:00:46]}  Qe5 {[%clk 0:00:16]} 29. fxg6 {[%clk 0:00:44]}  fxg6 {[%clk 0:00:17]} 30. Kg2 {[%clk 0:00:38]}  Qd4 {[%clk 0:00:12]} 31. Qc2 {[%clk 0:00:37]}  b5 {[%clk 0:00:09]} 32. cxb5 {[%clk 0:00:35]}  axb5 {[%clk 0:00:09]} 33. Bxc6 {[%clk 0:00:34]}  Bc8 {[%clk 0:00:08]} 34. Bxb5 {[%clk 0:00:29]}  Be6 {[%clk 0:00:06]} 35. Bc4 {[%clk 0:00:27]}  d5 {[%clk 0:00:06]} 36. Bd3 {[%clk 0:00:24]}  Bf7 {[%clk 0:00:05]} 37. Be2 {[%clk 0:00:20]}  Be5 {[%clk 0:00:05]} 38. Bf3 {[%clk 0:00:20]}  Bd6 {[%clk 0:00:05]} 39. Bxh5 {[%clk 0:00:18]}  Qe5 {[%clk 0:00:02]} 40. Bf3 {[%clk 0:00:18]}  d4 {[%clk 0:00:03]} 41. Nc4 {[%clk 0:00:18]}  Bxc4 {[%clk 0:00:03]} 42. Qxc4 {[%clk 0:00:19]}  Qc5 {[%clk 0:00:02]} 43. Qxc5 {[%clk 0:00:18]}  Bxc5 {[%clk 0:00:03]} 44. Be4 {[%clk 0:00:18]}  Kf6 {[%clk 0:00:03]} 45. f4 {[%clk 0:00:19]}  Bb4 {[%clk 0:00:02]} 46. Kf3 {[%clk 0:00:19]}  Be1 {[%clk 0:00:03]} 47. Bd3 {[%clk 0:00:18]}  Ke6 {[%clk 0:00:00]} 48. Bxg6 {[%clk 0:00:16]} 1-0

[Event "January 2 Early 2024"]
[Site "https://www.chess.com"]
[Date "2024.01.02"]
[Round "8"]
[White "Gomez Falagan, Daniel"]
[Black "Ginzburg, Yakov"]
[Result "1/2-1/2"]
[Board "99"]
[TimeControl "180+1"]
[WhiteFideId "54509947"]
[BlackFideId "4157176"]
[WhiteElo "2378"]
[BlackElo "2561"]
[WhiteTeam "ESP"]
[BlackTeam "RUS"]
[WhiteClock "0:01:04"]
[BlackClock "0:00:17"]

1. Nf3 {[%clk 0:03:00]}  Nf6 {[%clk 0:02:59]} 2. b3 {[%clk 0:03:01]}  d6 {[%clk 0:02:59]} 3. d4 {[%clk 0:03:01]}  Nbd7 {[%clk 0:02:58]} 4. Bb2 {[%clk 0:03:01]}  g6 {[%clk 0:02:57]} 5. g3 {[%clk 0:03:02]}  Bg7 {[%clk 0:02:58]} 6. Bg2 {[%clk 0:03:03]}  O-O {[%clk 0:02:58]} 7. O-O {[%clk 0:03:03]}  e5 {[%clk 0:02:58]} 8. dxe5 {[%clk 0:03:03]}  Ng4 {[%clk 0:02:59]} 9. c4 {[%clk 0:03:03]}  Ngxe5 {[%clk 0:02:59]} 10. Qd2 {[%clk 0:03:04]}  Nxf3+ {[%clk 0:02:49]} 11. Bxf3 {[%clk 0:03:05]}  Ne5 {[%clk 0:02:49]} 12. Bg2 {[%clk 0:03:04]}  Bd7 {[%clk 0:02:38]} 13. Bxb7 {[%clk 0:02:49]}  Bh3 {[%clk 0:02:25]} 14. Bg2 {[%clk 0:02:49]}  Bxg2 {[%clk 0:02:25]} 15. Kxg2 {[%clk 0:02:50]}  Qc8 {[%clk 0:02:18]} 16. Nc3 {[%clk 0:02:50]}  Rb8 {[%clk 0:02:15]} 17. Nd5 {[%clk 0:02:49]}  Qd8 {[%clk 0:01:50]} 18. Rac1 {[%clk 0:02:44]}  Re8 {[%clk 0:01:46]} 19. Rfd1 {[%clk 0:02:38]}  c6 {[%clk 0:01:26]} 20. Ne3 {[%clk 0:02:36]}  Bf8 {[%clk 0:01:07]} 21. Qd4 {[%clk 0:02:25]}  f6 {[%clk 0:00:59]} 22. h4 {[%clk 0:02:23]}  Rb7 {[%clk 0:00:55]} 23. h5 {[%clk 0:02:22]}  Bh6 {[%clk 0:00:43]} 24. Rh1 {[%clk 0:02:08]}  Bxe3 {[%clk 0:00:42]} 25. Qxe3 {[%clk 0:02:04]}  Nxc4 {[%clk 0:00:40]} 26. Qc3 {[%clk 0:01:55]}  Nxb2 {[%clk 0:00:40]} 27. Qxb2 {[%clk 0:01:56]}  g5 {[%clk 0:00:39]} 28. Rxc6 {[%clk 0:01:40]}  Rbe7 {[%clk 0:00:39]} 29. e3 {[%clk 0:01:38]}  Qa8 {[%clk 0:00:38]} 30. Rc1 {[%clk 0:01:33]}  Rc7 {[%clk 0:00:28]} 31. Qxf6 {[%clk 0:01:06]}  Rxc6 {[%clk 0:00:27]} 32. Qxg5+ {[%clk 0:01:07]}  Kh8 {[%clk 0:00:17]} 33. Qf6+ {[%clk 0:01:04]}  Kg8 {[%clk 0:00:17]} 34. Qg5+ {[%clk 0:01:04]}  Kh8 {[%clk 0:00:17]} 35. Qf6+ {[%clk 0:01:03]}  Kg8 {[%clk 0:00:17]} 36. Qg5+ {[%clk 0:01:04]} 1/2-1/2

[Event "January 2 Early 2024"]
[Site "https://www.chess.com"]
[Date "2024.01.02"]
[Round "8"]
[White "Skurikhin, Dmitrij"]
[Black "Manukyan, Artyom"]
[Result "1-0"]
[Board "104"]
[TimeControl "180+1"]
[WhiteFideId "4161297"]
[BlackFideId "13305786"]
[WhiteElo "2283"]
[BlackElo "2532"]
[WhiteTeam "RUS"]
[BlackTeam "ARM"]
[WhiteClock "0:02:18"]
[BlackClock "0:02:40"]

1. d4 {[%clk 0:03:00]}  d5 {[%clk 0:02:59]} 2. Nf3 {[%clk 0:03:00]}  Nf6 {[%clk 0:02:59]} 3. c4 {[%clk 0:03:00]}  e6 {[%clk 0:02:59]} 4. Nc3 {[%clk 0:03:00]}  c5 {[%clk 0:03:00]} 5. cxd5 {[%clk 0:03:00]}  Nxd5 {[%clk 0:03:01]} 6. e4 {[%clk 0:02:59]}  Nxc3 {[%clk 0:03:01]} 7. bxc3 {[%clk 0:03:00]}  cxd4 {[%clk 0:03:02]} 8. cxd4 {[%clk 0:03:01]}  Bb4+ {[%clk 0:03:03]} 9. Bd2 {[%clk 0:03:01]}  Bxd2+ {[%clk 0:03:04]} 10. Qxd2 {[%clk 0:03:01]}  O-O {[%clk 0:03:05]} 11. Bc4 {[%clk 0:03:01]}  b6 {[%clk 0:03:04]} 12. O-O {[%clk 0:03:00]}  Bb7 {[%clk 0:03:05]} 13. Rfe1 {[%clk 0:03:00]}  Nc6 {[%clk 0:03:04]} 14. Rad1 {[%clk 0:02:59]}  Rc8 {[%clk 0:03:04]} 15. Bf1 {[%clk 0:02:56]}  Na5 {[%clk 0:03:02]} 16. d5 {[%clk 0:02:55]}  exd5 {[%clk 0:02:59]} 17. exd5 {[%clk 0:02:56]}  Qd6 {[%clk 0:02:59]} 18. Ng5 {[%clk 0:02:35]}  Rc5 {[%clk 0:02:55]} 19. Ne4 {[%clk 0:02:27]}  Qxd5 {[%clk 0:02:53]} 20. Nxc5 {[%clk 0:02:27]}  Qxc5 {[%clk 0:02:54]} 21. Qd4 {[%clk 0:02:26]}  Qg5 {[%clk 0:02:52]} 22. Re5 {[%clk 0:02:25]}  Qg6 {[%clk 0:02:48]} 23. Qd6 {[%clk 0:02:19]}  Qg4 {[%clk 0:02:40]} 24. Qxf8+ {[%clk 0:02:18]} 1-0

[Event "January 2 Early 2024"]
[Site "https://www.chess.com"]
[Date "2024.01.02"]
[Round "8"]
[White "Rose, Felix"]
[Black "Coro, Lucas"]
[Result "0-1"]
[Board "107"]
[TimeControl "180+1"]
[WhiteFideId "5105722"]
[BlackFideId "147222"]
[WhiteElo "2221"]
[BlackElo "2523"]
[WhiteTeam "MEX"]
[BlackTeam "ARG"]
[WhiteClock "0:01:17"]
[BlackClock "0:01:27"]

1. e4 {[%clk 0:02:59]}  c6 {[%clk 0:02:59]} 2. d4 {[%clk 0:02:59]}  d5 {[%clk 0:03:00]} 3. e5 {[%clk 0:02:59]}  Bf5 {[%clk 0:02:59]} 4. h4 {[%clk 0:03:00]}  h5 {[%clk 0:02:56]} 5. Bd3 {[%clk 0:03:00]}  Bxd3 {[%clk 0:02:55]} 6. Qxd3 {[%clk 0:03:01]}  Qa5+ {[%clk 0:02:56]} 7. Nd2 {[%clk 0:03:00]}  Qa6 {[%clk 0:02:52]} 8. c4 {[%clk 0:03:00]}  e6 {[%clk 0:02:52]} 9. Ngf3 {[%clk 0:03:00]}  Ne7 {[%clk 0:02:53]} 10. O-O {[%clk 0:03:00]}  Nf5 {[%clk 0:02:54]} 11. Qc2 {[%clk 0:02:56]}  Be7 {[%clk 0:02:52]} 12. g3 {[%clk 0:02:55]}  Nd7 {[%clk 0:02:46]} 13. b3 {[%clk 0:02:47]}  b5 {[%clk 0:02:22]} 14. Re1 {[%clk 0:02:35]}  bxc4 {[%clk 0:02:17]} 15. bxc4 {[%clk 0:02:35]}  Rb8 {[%clk 0:02:13]} 16. cxd5 {[%clk 0:02:30]}  cxd5 {[%clk 0:02:14]} 17. Nf1 {[%clk 0:02:29]}  Qc4 {[%clk 0:02:12]} 18. Qd1 {[%clk 0:02:22]}  Nb6 {[%clk 0:01:56]} 19. Ne3 {[%clk 0:02:20]}  Nxe3 {[%clk 0:01:56]} 20. Bxe3 {[%clk 0:02:12]}  Qa4 {[%clk 0:01:53]} 21. Qe2 {[%clk 0:02:01]}  Nc4 {[%clk 0:01:53]} 22. Bg5 {[%clk 0:02:01]}  Rb2 {[%clk 0:01:52]} 23. Qd3 {[%clk 0:01:52]}  Qa3 {[%clk 0:01:44]} 24. Qd1 {[%clk 0:01:37]}  Bb4 {[%clk 0:01:40]} 25. Re2 {[%clk 0:01:31]}  Qxf3 {[%clk 0:01:37]} 26. Rxb2 {[%clk 0:01:29]}  Qxd1+ {[%clk 0:01:38]} 27. Rxd1 {[%clk 0:01:29]}  Nxb2 {[%clk 0:01:39]} 28. Rb1 {[%clk 0:01:28]}  Bc3 {[%clk 0:01:29]} 29. Bc1 {[%clk 0:01:27]}  Kd7 {[%clk 0:01:26]} 30. Bxb2 {[%clk 0:01:17]}  Rb8 {[%clk 0:01:27]} 0-1